fUST/lending_fUST_20250507
["ID","MTS","AMOUNT","RATE_DAILY","PERIOD"]
[360109977,1746552638978,-500.0,0.00019173,2]
[360109978,1746552638987,-500.0,0.00019173,2]
[360109979,1746552638997,-500.0,0.00019173,2]
[360109980,1746552639006,-500.0,0.00019173,2]
[360109981,1746552639016,-500.0,0.00019173,2]
[360109982,1746552639026,-500.0,0.00019173,2]
[360109983,1746552639035,-500.0,0.00019173,2]
[360109984,1746552639045,-500.0,0.00019173,2]
[360109985,1746552639054,-500.0,0.00019173,2]
[360109986,1746552639063,-500.0,0.00019173,2]
[360109987,1746552639073,-500.0,0.00019173,2]
[360109988,1746552639082,-500.0,0.00019173,2]
[360109989,1746552639091,-500.0,0.00019173,2]
[360109990,1746552639101,-326.71435727,0.00019177,4]
[360109991,1746552639110,-469.45726411,0.00019178,2]
[360109992,1746552639119,-400.0,0.00019178,2]
[360109993,1746552639129,-400.0,0.00019178,2]
[360109994,1746552639141,-412.38201439,0.00019178,2]
[360109995,1746552639150,-400.0,0.00019178,2]
[360109996,1746552639159,-281.09796358,0.00019178,2]
[360109997,1746552639169,-408.41553255,0.00019178,2]
[360109998,1746552639179,-400.0,0.00019178,2]
[360109999,1746552639188,-400.0,0.00019178,2]
[360110000,1746552639198,-1037.49480534,0.00019178,2]
[360110001,1746552639207,-400.0,0.00019178,2]
[360110002,1746552639217,-406.24881749,0.00019178,2]
[360110003,1746552639226,-400.0,0.00019178,2]
[360110004,1746552639236,-400.0,0.00019178,2]
[360110005,1746552639245,-421.00085836,0.00019178,2]
[360110006,1746552639255,-400.0,0.00019178,2]
[360110007,1746552639264,-400.0,0.00019178,2]
[360110008,1746552639273,-400.0,0.00019178,2]
[360110009,1746552639283,-400.0,0.00019178,2]
[360110010,1746552639292,-293.00261871,0.00019178,2]
[360110011,1746552639301,-413.38101009,0.00019178,2]
[360110012,1746552639311,-400.0,0.00019178,2]
[360110013,1746552639321,-400.0,0.00019178,2]
[360110014,1746552639331,-171.66772179,0.00019178,2]
[360110015,1746552639341,-445.89,0.00019178,2]
[360110016,1746552639351,-517.09235961,0.00019178,2]
[360110017,1746552639360,-400.0,0.00019178,2]
[360110018,1746552639370,-603.65,0.00019178,2]
[360110019,1746552639379,-400.0,0.00019178,2]
[360110020,1746552639390,-400.0,0.00019178,2]
[360110021,1746552639399,-408.05559619,0.00019178,2]
[360110022,1746552639408,-400.0,0.00019178,2]
[360110023,1746552639418,-1028.41,0.00019178,2]
[360110024,1746552639427,-400.0,0.00019178,2]
[360110025,1746552639436,-400.0,0.00019178,2]
[360110026,1746552639446,-400.0,0.00019178,2]
[360110027,1746552639456,-386.24297431,0.00019178,2]
[360110028,1746552639465,-400.0,0.00019178,2]
[360110029,1746552639474,-194.42986948,0.00019178,2]
[360110030,1746552639483,-400.0,0.00019178,2]
[360110031,1746552639493,-409.58833829,0.00019178,2]
[360110032,1746552639503,-400.0,0.00019178,2]
[360110033,1746552639512,-402.19121217,0.00019178,2]
[360110034,1746552639522,-400.0,0.00019178,2]
[360110035,1746552639531,-400.0,0.00019178,2]
[360110036,1746552639540,-400.0,0.00019178,2]
[360110037,1746552639549,-400.0,0.00019178,2]
[360110038,1746552639559,-659.19,0.00019178,2]
[360110039,1746552639570,-400.0,0.00019178,2]
[360110040,1746552639583,-400.0,0.00019178,2]
[360110041,1746552639592,-400.0,0.00019178,2]
[360110042,1746552639602,-408.58372012,0.00019178,2]
[360110043,1746552639611,-507.98636629,0.00019178,2]
[360110044,1746552639621,-400.0,0.00019178,2]
[360110045,1746552639630,-400.0,0.00019178,2]
[360110046,1746552639640,-400.0,0.00019178,2]
[360110047,1746552639650,-408.25513853,0.00019178,2]
[360110048,1746552639660,-400.0,0.00019178,2]
[360110049,1746552639670,-400.0,0.00019178,2]
[360110050,1746552639680,-400.0,0.00019178,2]
[360110051,1746552639691,-400.0,0.00019178,2]
[360110052,1746552639701,-400.0,0.00019178,2]
[360110053,1746552639712,-336.87802899,0.00019178,2]
[360110054,1746552639722,-491.04,0.00019178,2]
[360110055,1746552639731,-684.16,0.00019178,2]
[360110056,1746552639741,-400.0,0.00019178,2]
[360110057,1746552639751,-400.0,0.00019178,2]
[360110058,1746552639760,-400.0,0.00019178,2]
[360110059,1746552639770,-400.0,0.00019178,2]
[360110060,1746552639779,-400.0,0.00019178,2]
[360110061,1746552639788,-400.0,0.00019178,2]
[360110062,1746552639797,-400.0,0.00019178,2]
[360110063,1746552639807,-433.66,0.00019178,2]
[360110064,1746552639816,-400.0,0.00019178,2]
[360110065,1746552639825,-400.0,0.00019178,2]
[360110066,1746552639834,-400.0,0.00019178,2]
[360110067,1746552639844,-212.43059048,0.00019178,2]
[360110068,1746552639853,-965.04,0.00019178,2]
[360110069,1746552639863,-400.0,0.00019178,2]
[360110070,1746552639872,-503.74238831,0.00019178,2]
[360110071,1746552639881,-400.0,0.00019178,2]
[360110072,1746552639891,-534.31,0.00019178,2]
[360110073,1746552639900,-400.0,0.00019178,2]
[360110074,1746552639910,-400.0,0.00019178,2]
[360110075,1746552639920,-400.0,0.00019178,2]
[360110076,1746552639930,-448.9042041,0.00019178,2]
[360110077,1746552639940,-400.0,0.00019178,2]
[360110078,1746552639950,-400.0,0.00019178,2]
[360110079,1746552639960,-400.0,0.00019178,2]
[360110080,1746552639970,-500.0,0.00019178,2]
[360110081,1746552639980,-400.0,0.00019178,2]
[360110082,1746552639989,-400.0,0.00019178,2]
[360110083,1746552639998,-400.0,0.00019178,2]
[360110084,1746552640008,-401.69554683,0.00019178,2]
[360110085,1746552640018,-400.0,0.00019178,2]
[360110086,1746552640027,-1828.59,0.00019178,2]
[360110087,1746552640038,-424.88,0.00019178,2]
[360110088,1746552640048,-199.27137379,0.00019178,2]
[360110089,1746552640058,-493.43,0.00019178,2]
[360110090,1746552640068,-1250.27,0.00019178,2]
[360110091,1746552640078,-400.0,0.00019178,2]
[360110092,1746552640088,-400.0,0.00019178,2]
[360110093,1746552640098,-400.0,0.00019178,2]
[360110094,1746552640107,-512.14,0.00019178,2]
[360110095,1746552640118,-1537.04,0.00019178,2]
[360110096,1746552640127,-265.01697814,0.00019178,2]
[360110097,1746552640137,-400.0,0.00019178,2]
[360110098,1746552640147,-400.0,0.00019178,2]
[360110099,1746552640158,-400.0,0.00019178,2]
[360110100,1746552640168,-400.0,0.00019178,2]
[360110101,1746552640178,-2571.54,0.00019178,2]
[360110102,1746552640188,-400.0,0.00019178,2]
[360110103,1746552640197,-400.0,0.00019178,2]
[360110104,1746552640206,-400.0,0.00019178,2]
[360110105,1746552640216,-400.0,0.00019178,2]
[360110106,1746552640226,-200.03699063,0.00019178,2]
[360110107,1746552640236,-739.07,0.00019178,2]
[360110108,1746552640246,-400.0,0.00019178,2]
[360110109,1746552640255,-400.0,0.00019178,2]
[360110110,1746552640265,-278.22864372,0.00019178,2]
[360110111,1746552640274,-898.42,0.00019178,2]
[360110112,1746552640283,-400.0,0.00019178,2]
[360110113,1746552640293,-400.0,0.00019178,2]
[360110114,1746552640303,-412.8869152,0.00019178,2]
[360110115,1746552640312,-400.0,0.00019178,2]
[360110116,1746552640322,-400.0,0.00019178,2]
[360110117,1746552640331,-415.51,0.00019178,2]
[360110118,1746552640340,-400.0,0.00019178,2]
[360110119,1746552640350,-400.0,0.00019178,2]
[360110120,1746552640360,-400.0,0.00019178,2]
[360110121,1746552640370,-400.0,0.00019178,2]
[360110122,1746552640380,-400.0,0.00019178,2]
[360110123,1746552640391,-546.91,0.00019178,2]
[360110124,1746552640401,-315.14647706,0.00019178,2]
[360110125,1746552640411,-512.04,0.00019178,2]
[360110126,1746552640421,-405.72679758,0.00019178,2]
[360110127,1746552640431,-433.28797714,0.00019178,2]
[360110128,1746552640440,-504.90921476,0.00019178,2]
[360110129,1746552640450,-1515.55,0.00019178,2]
[360110130,1746552640460,-562.3,0.00019178,2]
[360110131,1746552640470,-532.65,0.00019178,2]
[360110132,1746552640480,-400.0,0.00019178,2]
[360110133,1746552640490,-400.0,0.00019178,2]
[360110134,1746552640500,-400.0,0.00019178,2]
[360110135,1746552640510,-400.0,0.00019178,2]
[360110136,1746552640520,-320.64628423,0.00019178,2]
[360110137,1746552640530,-400.0,0.00019178,2]
[360110138,1746552640539,-400.0,0.00019178,2]
[360110139,1746552640549,-786.07,0.00019178,2]
[360110140,1746552640559,-688.45,0.00019178,2]
[360110142,1746552640569,-403.97133091,0.00019178,2]
[360110144,1746552640582,-400.0,0.00019178,2]
[360110145,1746552640592,-400.0,0.00019178,2]
[360110146,1746552640602,-400.0,0.00019178,2]
[360110147,1746552640612,-400.0,0.00019178,2]
[360110149,1746552640623,-400.0,0.00019178,2]
[360110151,1746552640633,-400.0,0.00019178,2]
[360110153,1746552640643,-400.0,0.00019178,2]
[360110156,1746552640654,-154.30944127,0.00019178,2]
[360110158,1746552640664,-400.0,0.00019178,2]
[360110160,1746552640673,-400.0,0.00019178,2]
[360110162,1746552640682,-400.0,0.00019178,2]
[360110163,1746552640692,-400.0,0.00019178,2]
[360110165,1746552640703,-4604.75,0.00019178,2]
[360110168,1746552640714,-310.2847497,0.00019178,2]
[360110170,1746552640724,-759.02,0.00019178,2]
[360110172,1746552640734,-400.0,0.00019178,2]
[360110174,1746552640743,-400.0,0.00019178,2]
[360110176,1746552640753,-400.0,0.00019178,2]
[360110178,1746552640762,-400.0,0.00019178,2]
[360110179,1746552640772,-400.0,0.00019178,2]
[360110182,1746552640782,-400.0,0.00019178,2]
[360110184,1746552640792,-400.0,0.00019178,2]
[360110186,1746552640801,-456.92259359,0.00019178,2]
[360110188,1746552640811,-400.0,0.00019178,2]
[360110190,1746552640820,-400.0,0.00019178,2]
[360110192,1746552640830,-1517.75,0.00019178,2]
[360110194,1746552640839,-958.24,0.00019178,2]
[360110196,1746552640849,-400.0,0.00019178,2]
[360110198,1746552640859,-400.0,0.00019178,2]
[360110200,1746552640868,-400.0,0.00019178,2]
[360110218,1746552641032,-402.71098712,0.00019178,2]
[360110220,1746552641042,-400.0,0.00019178,2]
[360110222,1746552641053,-400.0,0.00019178,2]
[360110224,1746552641063,-1430.84,0.00019178,2]
[360110226,1746552641073,-400.0,0.00019178,2]
[360110228,1746552641082,-715.41,0.00019178,2]
[360110230,1746552641092,-400.0,0.00019178,2]
[360110232,1746552641101,-400.0,0.00019178,2]
[360110234,1746552641111,-308.7878406,0.00019178,2]
[360110236,1746552641120,-873.25,0.00019178,2]
[360110238,1746552641129,-400.0,0.00019178,2]
[360110240,1746552641140,-495.08,0.00019178,2]
[360110242,1746552641150,-664.02,0.00019178,2]
[360110244,1746552641160,-1939.43757077,0.00019178,2]
[360110487,1746552643630,-708.365232,0.00019178,2]
[360110490,1746552643642,-256.5,0.00019178,2]
[360111800,1746553837968,-1342.05227489,0.00018545,2]
[360111802,1746553837978,-157.76832993,0.00018621,2]
[360111805,1746553837987,-613.55168602,0.0001867,2]
[360111807,1746553837996,-5000.0,0.00018749,2]
[360111808,1746553838006,-164.21011832,0.00018873,2]
[360111810,1746553838015,-2019.2303304,0.000189,2]
[360111813,1746553838025,-1346.03672171,0.00018911,2]
[360111815,1746553838034,-198467.71371996,0.00018971,2]
[360111817,1746553838044,-500.0,0.00018973,2]
[360111818,1746553838053,-500.0,0.00018973,2]
[360111821,1746553838062,-500.0,0.00018973,2]
[360111822,1746553838071,-500.0,0.00018973,2]
[360111824,1746553838085,-500.0,0.00018973,2]
[360111827,1746553838095,-500.0,0.00018973,2]
[360111828,1746553838104,-500.0,0.00018973,2]
[360111831,1746553838113,-370000.0,0.00018978,2]
[360111833,1746553838123,-613.55168602,0.00019006,2]
[360111835,1746553838133,-200.0,0.00019011,4]
[360111837,1746553838142,-168.49427722,0.00019166,2]
[360111839,1746553838151,-500.0,0.00019173,2]
[360111841,1746553838160,-185.89949078,0.00019173,2]
[360111843,1746553838169,-500.0,0.00019173,2]
[360111845,1746553838178,-500.0,0.00019173,2]
[360111847,1746553838188,-500.0,0.00019173,2]
[360111849,1746553838198,-500.0,0.00019173,2]
[360111851,1746553838207,-500.0,0.00019173,2]
[360111853,1746553838216,-500.0,0.00019173,2]
[360111855,1746553838225,-500.0,0.00019173,2]
[360111857,1746553838234,-500.0,0.00019173,2]
[360111859,1746553838243,-500.0,0.00019173,2]
[360111861,1746553838252,-432.530265,0.00019173,2]
[360111863,1746553838262,-500.0,0.00019173,2]
[360111865,1746553838271,-500.0,0.00019173,2]
[360111867,1746553838281,-500.0,0.00019173,2]
[360111869,1746553838290,-500.0,0.00019173,2]
[360111871,1746553838299,-409.63546886,0.00019173,2]
[360111872,1746553838308,-503.23032788,0.00019173,2]
[360111874,1746553838317,-500.0,0.00019173,2]
[360111876,1746553838327,-500.0,0.00019173,2]
[360111878,1746553838336,-500.0,0.00019173,2]
[360111880,1746553838346,-500.0,0.00019173,2]
[360111882,1746553838355,-500.0,0.00019173,2]
[360111884,1746553838364,-500.84587281,0.00019173,2]
[360111886,1746553838373,-500.0,0.00019173,2]
[360111888,1746553838382,-500.0,0.00019173,2]
[360111890,1746553838391,-646.35231596,0.00019173,2]
[360111891,1746553838400,-500.0,0.00019173,2]
[360111894,1746553838410,-500.0,0.00019173,2]
[360111896,1746553838419,-500.0,0.00019173,2]
[360111898,1746553838428,-512.51779274,0.00019173,2]
[360111900,1746553838437,-500.0,0.00019173,2]
[360111901,1746553838447,-500.0,0.00019173,2]
[360111904,1746553838456,-500.0,0.00019173,2]
[360111905,1746553838465,-1005.19469772,0.00019177,2]
[360111907,1746553838474,-1001.14143726,0.00019177,2]
[360111910,1746553838484,-400.0,0.00019178,2]
[360111911,1746553838493,-400.0,0.00019178,2]
[360111913,1746553838502,-400.0,0.00019178,2]
[360111916,1746553838512,-400.0,0.00019178,2]
[360111918,1746553838522,-400.0,0.00019178,2]
[360111920,1746553838531,-400.0,0.00019178,2]
[360111922,1746553838541,-400.0,0.00019178,2]
[360111924,1746553838550,-400.0,0.00019178,2]
[360111925,1746553838559,-400.0,0.00019178,2]
[360111927,1746553838568,-400.0,0.00019178,2]
[360111929,1746553838578,-400.0,0.00019178,2]
[360111931,1746553838588,-503.64168324,0.00019178,2]
[360111934,1746553838598,-400.0,0.00019178,2]
[360111950,1746553838607,-400.0,0.00019178,2]
[360111954,1746553838778,-400.0,0.00019178,2]
[360111956,1746553838787,-400.0,0.00019178,2]
[360111958,1746553838797,-400.0,0.00019178,2]
[360111960,1746553838806,-400.0,0.00019178,2]
[360111962,1746553838816,-400.0,0.00019178,2]
[360111964,1746553838826,-400.0,0.00019178,2]
[360111966,1746553838835,-400.0,0.00019178,2]
[360111968,1746553838844,-400.0,0.00019178,2]
[360111969,1746553838853,-500.0,0.00019178,2]
[360111970,1746553838862,-400.0,0.00019178,2]
[360111971,1746553838871,-502.65057498,0.00019178,2]
[360111972,1746553838881,-400.0,0.00019178,2]
[360111973,1746553838891,-400.0,0.00019178,2]
[360111974,1746553838900,-400.0,0.00019178,2]
[360111975,1746553838910,-400.0,0.00019178,2]
[360111976,1746553838920,-400.0,0.00019178,2]
[360111977,1746553838929,-400.0,0.00019178,2]
[360111978,1746553838939,-400.0,0.00019178,2]
[360111979,1746553838948,-400.0,0.00019178,2]
[360111980,1746553838957,-400.0,0.00019178,2]
[360111981,1746553838966,-400.0,0.00019178,2]
[360111982,1746553838975,-400.0,0.00019178,2]
[360111983,1746553838985,-400.0,0.00019178,2]
[360111984,1746553838994,-400.0,0.00019178,2]
[360111985,1746553839003,-402.77319095,0.00019178,2]
[360111986,1746553839012,-400.0,0.00019178,2]
[360111987,1746553839022,-400.0,0.00019178,2]
[360111988,1746553839031,-401.94674852,0.00019178,2]
[360111989,1746553839040,-403.32021454,0.00019178,2]
[360111990,1746553839050,-400.0,0.00019178,2]
[360111991,1746553839059,-307.06732803,0.00019178,2]
[360111992,1746553839068,-405.48311805,0.00019178,2]
[360111994,1746553839082,-400.0,0.00019178,2]
[360111996,1746553839091,-400.0,0.00019178,2]
[360111998,1746553839100,-456.41521488,0.00019178,2]
[360112000,1746553839109,-400.0,0.00019178,2]
[360112002,1746553839119,-214.02295616,0.00019178,2]
[360112004,1746553839128,-507.8850277,0.00019178,2]
[360112006,1746553839138,-400.0,0.00019178,2]
[360112008,1746553839147,-401.8274264,0.00019178,2]
[360112010,1746553839158,-400.0,0.00019178,2]
[360112012,1746553839167,-400.0,0.00019178,2]
[360112014,1746553839176,-400.0,0.00019178,2]
[360112016,1746553839185,-400.0,0.00019178,2]
[360112018,1746553839194,-879.69,0.00019178,2]
[360112020,1746553839203,-400.0,0.00019178,2]
[360112022,1746553839212,-406.5313941,0.00019178,2]
[360112024,1746553839221,-400.0,0.00019178,2]
[360112026,1746553839231,-400.0,0.00019178,2]
[360112028,1746553839241,-400.0,0.00019178,2]
[360112030,1746553839250,-400.0,0.00019178,2]
[360112032,1746553839259,-400.0,0.00019178,2]
[360112034,1746553839268,-400.0,0.00019178,2]
[360112036,1746553839277,-400.0,0.00019178,2]
[360112038,1746553839286,-400.0,0.00019178,2]
[360112040,1746553839296,-400.0,0.00019178,2]
[360112042,1746553839305,-403.72300293,0.00019178,2]
[360112044,1746553839314,-400.0,0.00019178,2]
[360112046,1746553839323,-400.0,0.00019178,2]
[360112048,1746553839332,-400.0,0.00019178,2]
[360112050,1746553839341,-400.0,0.00019178,2]
[360112052,1746553839351,-400.0,0.00019178,2]
[360112054,1746553839360,-400.0,0.00019178,2]
[360112056,1746553839370,-400.0,0.00019178,2]
[360112058,1746553839379,-407.394944,0.00019178,2]
[360112060,1746553839388,-208.10094571,0.00019178,2]
[360112062,1746553839398,-205.50026287,0.00019178,2]
[360112064,1746553839407,-503.5525166,0.00019178,2]
[360112066,1746553839417,-400.0,0.00019178,2]
[360112068,1746553839426,-400.0,0.00019178,2]
[360112070,1746553839436,-400.0,0.00019178,2]
[360112073,1746553839445,-400.0,0.00019178,2]
[360112075,1746553839454,-400.0,0.00019178,2]
[360112077,1746553839463,-400.0,0.00019178,2]
[360112080,1746553839472,-400.0,0.00019178,2]
[360112082,1746553839481,-400.0,0.00019178,2]
[360112085,1746553839493,-400.0,0.00019178,2]
[360112087,1746553839502,-934.45,0.00019178,2]
[360112090,1746553839512,-400.0,0.00019178,2]
[360112092,1746553839521,-506.19767012,0.00019178,2]
[360112094,1746553839530,-400.0,0.00019178,2]
[360112095,1746553839539,-400.0,0.00019178,2]
[360112098,1746553839549,-400.0,0.00019178,2]
[360112099,1746553839558,-998.0,0.00019178,2]
[360112102,1746553839568,-400.0,0.00019178,2]
[360112104,1746553839577,-400.0,0.00019178,2]
[360112106,1746553839587,-400.0,0.00019178,2]
[360112108,1746553839596,-400.0,0.00019178,2]
[360112110,1746553839605,-400.0,0.00019178,2]
[360112112,1746553839615,-400.0,0.00019178,2]
[360112114,1746553839624,-400.0,0.00019178,2]
[360112116,1746553839635,-400.0,0.00019178,2]
[360112118,1746553839644,-400.0,0.00019178,2]
[360112120,1746553839653,-406.77745766,0.00019178,2]
[360112122,1746553839663,-400.0,0.00019178,2]
[360112124,1746553839673,-401.70271421,0.00019178,2]
[360112126,1746553839682,-400.0,0.00019178,2]
[360112128,1746553839691,-400.0,0.00019178,2]
[360112130,1746553839701,-403.35361379,0.00019178,2]
[360112132,1746553839710,-400.0,0.00019178,2]
[360112134,1746553839720,-400.0,0.00019178,2]
[360112136,1746553839729,-1358.88,0.00019178,2]
[360112138,1746553839739,-400.0,0.00019178,2]
[360112140,1746553839748,-401.04113812,0.00019178,2]
[360112142,1746553839758,-400.0,0.00019178,2]
[360112144,1746553839767,-400.0,0.00019178,2]
[360112146,1746553839776,-400.0,0.00019178,2]
[360112148,1746553839786,-401.33650777,0.00019178,2]
[360112150,1746553839795,-400.0,0.00019178,2]
[360112152,1746553839804,-400.0,0.00019178,2]
[360112154,1746553839814,-400.0,0.00019178,2]
[360112156,1746553839823,-400.0,0.00019178,2]
[360112158,1746553839831,-400.0,0.00019178,2]
[360112160,1746553839841,-400.0,0.00019178,2]
[360112162,1746553839850,-400.0,0.00019178,2]
[360112164,1746553839860,-400.0,0.00019178,2]
[360112166,1746553839870,-359.53149701,0.00019178,2]
[360112168,1746553839879,-400.0,0.00019178,2]
[360112170,1746553839888,-400.0,0.00019178,2]
[360112172,1746553839898,-400.0,0.00019178,2]
[360112174,1746553839907,-353.28047129,0.00019178,2]
[360112176,1746553839916,-400.0,0.00019178,2]
[360112179,1746553839926,-400.0,0.00019178,2]
[360112181,1746553839936,-503.74238831,0.00019178,2]
[360112183,1746553839945,-400.17178998,0.00019178,2]
[360112185,1746553839954,-400.0,0.00019178,2]
[360112187,1746553839963,-400.0,0.00019178,2]
[360112189,1746553839973,-406.72015398,0.00019178,2]
[360112191,1746553839983,-509.01718628,0.00019178,2]
[360112193,1746553839992,-400.0,0.00019178,2]
[360112195,1746553840001,-231.97218737,0.00019178,2]
[360112196,1746553840010,-346.12022662,0.00019178,2]
[360112199,1746553840020,-400.0,0.00019178,2]
[360112201,1746553840032,-582.88,0.00019178,2]
[360112203,1746553840041,-259.028416,0.00019178,2]
[360112205,1746553840051,-513.04252661,0.00019178,2]
[360112207,1746553840059,-1683.43,0.00019178,2]
[360112209,1746553840069,-400.0,0.00019178,2]
[360112211,1746553840081,-401.83508776,0.00019178,2]
[360112213,1746553840091,-400.0,0.00019178,2]
[360112215,1746553840100,-400.0,0.00019178,2]
[360112217,1746553840109,-400.0,0.00019178,2]
[360112219,1746553840119,-400.0,0.00019178,2]
[360112221,1746553840129,-400.0,0.00019178,2]
[360112223,1746553840138,-400.0,0.00019178,2]
[360112225,1746553840147,-400.0,0.00019178,2]
[360112227,1746553840158,-400.0,0.00019178,2]
[360112229,1746553840167,-400.0,0.00019178,2]
[360112231,1746553840176,-401.30563412,0.00019178,2]
[360112233,1746553840187,-400.0,0.00019178,2]
[360112235,1746553840195,-400.0,0.00019178,2]
[360112237,1746553840205,-400.0,0.00019178,2]
[360112239,1746553840214,-500.0,0.00019178,2]
[360112241,1746553840223,-400.0,0.00019178,2]
[360112243,1746553840233,-400.0,0.00019178,2]
[360112245,1746553840242,-809.46,0.00019178,2]
[360112247,1746553840251,-400.0,0.00019178,2]
[360112249,1746553840261,-400.0,0.00019178,2]
[360112251,1746553840270,-216.3917953,0.00019178,2]
[360112253,1746553840279,-400.0,0.00019178,2]
[360112255,1746553840288,-400.0,0.00019178,2]
[360112257,1746553840298,-400.0,0.00019178,2]
[360112259,1746553840307,-560.8,0.00019178,2]
[360112261,1746553840316,-400.13538946,0.00019178,2]
[360112263,1746553840325,-400.0,0.00019178,2]
[360112265,1746553840334,-400.0,0.00019178,2]
[360112267,1746553840344,-983.98,0.00019178,2]
[360112269,1746553840354,-984.36,0.00019178,2]
[360112271,1746553840363,-400.0,0.00019178,2]
[360112273,1746553840372,-231.68795328,0.00019178,2]
[360112275,1746553840381,-1994.82,0.00019178,2]
[360112277,1746553840390,-400.0,0.00019178,2]
[360112279,1746553840399,-400.0,0.00019178,2]
[360112281,1746553840408,-400.0,0.00019178,2]
[360112283,1746553840417,-400.0,0.00019178,2]
[360112285,1746553840426,-615.86,0.00019178,2]
[360112287,1746553840435,-400.0,0.00019178,2]
[360112289,1746553840445,-400.0,0.00019178,2]
[360112291,1746553840454,-455.08,0.00019178,2]
[360112293,1746553840463,-404.70681988,0.00019178,2]
[360112295,1746553840472,-1369.35,0.00019178,2]
[360112297,1746553840481,-400.0,0.00019178,2]
[360112299,1746553840491,-400.0,0.00019178,2]
[360112301,1746553840500,-400.0,0.00019178,2]
[360112303,1746553840509,-400.0,0.00019178,2]
[360112305,1746553840519,-400.0,0.00019178,2]
[360112306,1746553840528,-400.0,0.00019178,2]
[360112308,1746553840537,-400.0,0.00019178,2]
[360112310,1746553840547,-598.99,0.00019178,2]
[360112312,1746553840556,-560.92,0.00019178,2]
[360112314,1746553840565,-400.0,0.00019178,2]
[360112316,1746553840574,-400.0,0.00019178,2]
[360112318,1746553840583,-400.0,0.00019178,2]
[360112320,1746553840592,-400.0,0.00019178,2]
[360112323,1746553840602,-400.0,0.00019178,2]
[360112325,1746553840611,-400.0,0.00019178,2]
[360112327,1746553840621,-203.04065088,0.00019178,2]
[360112328,1746553840630,-400.0,0.00019178,2]
[360112329,1746553840639,-505.72161325,0.00019178,2]
[360112330,1746553840649,-2816.44,0.00019178,2]
[360112331,1746553840659,-400.0,0.00019178,2]
[360112332,1746553840668,-583.38,0.00019178,2]
[360112333,1746553840677,-425.58788198,0.00019178,2]
[360112334,1746553840687,-202.21434323,0.00019178,2]
[360112335,1746553840696,-860.94,0.00019178,2]
[360112336,1746553840705,-437.22,0.00019178,2]
[360112337,1746553840714,-400.97084348,0.00019178,2]
[360112338,1746553840724,-400.0,0.00019178,2]
[360112339,1746553840733,-400.0,0.00019178,2]
[360112341,1746553840742,-400.0,0.00019178,2]
[360112343,1746553840751,-400.0,0.00019178,2]
[360112345,1746553840760,-500.0,0.00019178,2]
[360112347,1746553840769,-500.0,0.00019178,2]
[360112349,1746553840778,-500.0,0.00019178,2]
[360112351,1746553840787,-500.0,0.00019178,2]
[360112353,1746553840796,-500.0,0.00019178,2]
[360112355,1746553840805,-500.0,0.00019178,2]
[360112357,1746553840814,-500.0,0.00019178,2]
[360112359,1746553840823,-500.0,0.00019178,2]
[360112361,1746553840833,-500.0,0.00019178,2]